lending/lending_fUSD_20251111
["ID","MTS","AMOUNT","RATE_DAILY","PERIOD"]
[393633547,1762869040251,-500.0,0.00017999,2]
[393633548,1762869040260,-500.0,0.00017999,2]
[393633549,1762869040270,-500.0,0.00017999,2]
[393633550,1762869040280,-500.0,0.00017999,2]
[393633551,1762869040290,-500.0,0.00017999,2]
[393633552,1762869040300,-500.0,0.00017999,2]
[393633553,1762869040309,-500.0,0.00017999,2]
[393633554,1762869040319,-500.0,0.00017999,2]
[393633555,1762869040337,-300.66021323,0.00017999,2]
[393633556,1762869040348,-500.0,0.00017999,2]
[393633557,1762869040358,-519.03161135,0.00017999,2]
[393633558,1762869040368,-500.0,0.00017999,2]
[393633559,1762869040378,-505.81429208,0.00017999,2]
[393633560,1762869040387,-609.11867736,0.00017999,2]
[393633561,1762869040397,-500.0,0.00017999,2]
[393633562,1762869040406,-503.45794758,0.00017999,2]
[393633563,1762869040416,-500.0,0.00017999,2]
[393633564,1762869040427,-500.0,0.00017999,2]
[393633565,1762869040436,-500.0,0.00017999,2]
[393633566,1762869040446,-158.55314436,0.00017999,2]
[393633567,1762869040455,-1352.74,0.00017999,2]
[393633568,1762869040465,-500.0,0.00017999,2]
[393633569,1762869040475,-500.0,0.00017999,2]
[393633570,1762869040485,-500.0,0.00017999,2]
[393633571,1762869040495,-500.0,0.00017999,2]
[393633572,1762869040505,-500.0,0.00017999,2]
[393633573,1762869040515,-232.51861703,0.00017999,2]
[393633574,1762869040524,-500.0,0.00017999,2]
[393633575,1762869040533,-500.0,0.00017999,2]
[393633576,1762869040543,-514.48012791,0.00017999,2]
[393633577,1762869040553,-524.08523061,0.00017999,2]
[393633578,1762869040563,-500.0,0.00017999,2]
[393633579,1762869040573,-500.0,0.00017999,2]
[393633580,1762869040583,-500.0,0.00017999,2]
[393633581,1762869040593,-500.0,0.00017999,2]
[393633582,1762869040603,-235.87014725,0.00017999,2]
[393633583,1762869040613,-224.51,0.00018032,2]
[393633584,1762869040623,-610.0,0.00018108,2]
[393633585,1762869040632,-1210.06,0.00018204,2]
[393633586,1762869040641,-195.0,0.00018214,2]
[393633587,1762869040650,-2500.0,0.00018214,2]
[393633588,1762869040660,-300.62660903,0.00018214,2]
[393633589,1762869040669,-250.0,0.00018214,2]
[393633590,1762869040678,-266.910952,0.00018214,2]
[393633591,1762869040688,-250.0,0.00018214,2]
[393633592,1762869040698,-1352.74,0.00018273,2]
[393633593,1762869040708,-1000.0,0.00018521,2]
[393633594,1762869040717,-501.87005511,0.00018521,2]
[393633595,1762869040726,-501.16416456,0.00018521,2]
[393633596,1762869040736,-1000.0,0.00018521,2]
[393633597,1762869040745,-1000.0,0.00018521,2]
[393633598,1762869040755,-1000.0,0.00018521,2]
[393633599,1762869040768,-1000.0,0.00018521,2]
[393633600,1762869040778,-1000.0,0.00018521,2]
[393633601,1762869040788,-1000.0,0.00018521,2]
[393633602,1762869040799,-854.61699849,0.00018521,2]
[393633603,1762869040808,-903.67238193,0.00018521,2]
[393633604,1762869040817,-1000.0,0.00018521,2]
[393633605,1762869040826,-500.0,0.00018521,2]
[393633606,1762869040838,-1352.74,0.00018547,2]
[393633607,1762869040848,-160.29773987,0.0001855,2]
[393633608,1762869040857,-502.68139073,0.00018585,2]
[393633609,1762869040866,-309.3685034,0.00018585,2]
[393633610,1762869040875,-1352.74,0.00018821,2]
[393633611,1762869040886,-1680.0,0.0001883,2]
[393633612,1762869040896,-1000.0,0.00018922,2]
[393633613,1762869040905,-935.0,0.00018962,2]
[393633614,1762869040915,-300.0,0.00019,2]
[393633615,1762869040924,-1500.0,0.00019068,2]
[393633616,1762869040934,-1002.12563559,0.00019068,2]
[393633617,1762869041133,-1500.0,0.00019068,2]
[393633618,1762869041143,-245.55904987,0.00019068,2]
[393633619,1762869041152,-1500.0,0.00019068,2]
[393633620,1762869041164,-1500.0,0.00019068,2]
[393633621,1762869041174,-1007.22167595,0.00019068,2]
[393633622,1762869041183,-1352.74,0.00019095,2]
[393633623,1762869041192,-500.0,0.00019178,2]
[393633624,1762869041205,-178.48,0.00019355,2]
[393633625,1762869041216,-1352.74,0.00019369,2]
[393633626,1762869041226,-500.0,0.00019473,2]
[393633627,1762869041236,-166.02634924,0.00019473,2]
[393633628,1762869041245,-504.64694869,0.00019473,2]
[393633629,1762869041256,-500.0,0.00019524,2]
[393633630,1762869041266,-420.0,0.00019531,2]
[393633631,1762869041276,-420.0,0.00019531,2]
[393633632,1762869041286,-2000.0,0.00019616,2]
[393633633,1762869041295,-1856.75290102,0.00019616,2]
[393633634,1762869041306,-2000.0,0.00019616,2]
[393633635,1762869041316,-2000.0,0.00019616,2]
[393633636,1762869041326,-1352.74,0.00019643,2]
[393633637,1762869041336,-2391.4078768,0.00019723,2]
[393633638,1762869041346,-1352.74,0.00019917,2]
[393633639,1762869041356,-200.0,0.00019953,2]
[393633640,1762869041366,-1000.0,0.00020021,2]
[393633641,1762869041375,-851.0,0.00020124,2]
[393633642,1762869041385,-2500.0,0.00020164,2]
[393633643,1762869041395,-2500.0,0.00020164,2]
[393633644,1762869041405,-314.1,0.00020187,2]
[393633645,1762869041415,-1352.74,0.00020191,2]
[393633646,1762869041425,-300.0,0.00020237,2]
[393633647,1762869041434,-166.66,0.00020339,2]
[393633648,1762869041444,-1352.74,0.00020465,2]
[393633649,1762869041454,-156.71973578,0.00020567,2]
[393633650,1762869041464,-500.0,0.00020567,2]
[393633651,1762869041474,-259.86383143,0.00020567,2]
[393633652,1762869041483,-500.0,0.00020567,2]
[393633653,1762869041493,-479.6911206,0.00020567,2]
[393633654,1762869041503,-319.1873034,0.00020567,2]
[393633655,1762869041513,-1500.0,0.00020568,2]
[393633656,1762869041523,-2351.0,0.00020665,2]
[393633657,1762869041533,-601.55033419,0.00020712,2]
[393633658,1762869041543,-1352.74,0.00020739,2]
[393633659,1762869041552,-478.44322026,0.00020996,2]
[393633660,1762869041562,-350.0,0.00021,2]
[393633661,1762869041571,-1352.75417502,0.00021013,2]
[393633662,1762869041582,-1000.0,0.00021024,2]
[393633663,1762869041594,-166.66,0.00021052,2]
[393633664,1762869041603,-686.44939406,0.00021116,2]
[393633665,1762869041613,-587.0,0.00021312,2]
[393633666,1762869041623,-587.0,0.00021312,2]
[393633667,1762869041633,-300.0,0.00021607,2]
[393633668,1762869041643,-166.66,0.00021766,2]
[393633669,1762869041653,-166.66,0.0002248,30]
[393633670,1762869041663,-3292.0,0.0002268,2]
[393633671,1762869041673,-400.0,0.00023,2]
[393633672,1762869041682,-1000.0,0.00023127,2]
[393633673,1762869041692,-823.0,0.00023257,2]
[393633674,1762869041702,-823.0,0.00023257,2]
[393633675,1762869041712,-38994.36728277,0.00024073,2]
[393633676,1762869041722,-1210.06,0.00024107,2]
[393633677,1762869041731,-48840.05928502,0.00024117,2]
[393633678,1762869041741,-500.0,0.00024173,2]
[393633679,1762869041750,-501.0162978,0.00024173,2]
[393633680,1762869041767,-500.59589849,0.00024721,2]
[393633681,1762869041776,-1210.06,0.0002479,2]
[393633682,1762869041786,-817.74876375,0.00024791,2]
[393633683,1762869041796,-478.44322026,0.000248,3]
[393633684,1762869041807,-44872.0829975,0.000248,3]
[393633685,1762869041818,-4609.0,0.0002489,2]
[393633686,1762869041828,-1006.84,0.00025,2]
[393633687,1762869041840,-450.0,0.00025,2]
[393633688,1762869041849,-29914.7219983,0.00025158,3]
[393633689,1762869041859,-1000.0,0.00025229,2]
[393633690,1762869041869,-751.0,0.00025378,2]
[393633691,1762869041878,-1152.0,0.00025378,2]
[393633692,1762869041888,-1006.84,0.000255,2]
[393633693,1762869041898,-500.0,0.0002552,2]
[393633694,1762869041907,-500.0,0.0002552,2]
[393633695,1762869041917,-501.63470427,0.0002552,2]
[393633696,1762869041927,-500.0,0.0002552,2]
[393633697,1762869041936,-534.98815412,0.0002552,2]
[393633698,1762869041945,-160.0734419,0.0002552,2]
[393633699,1762869041955,-500.0,0.0002552,2]
[393633700,1762869041965,-500.0,0.0002552,2]
[393633701,1762869041978,-500.0,0.0002552,2]
[393633702,1762869041988,-512.44749743,0.0002552,2]
[393633703,1762869041998,-500.0,0.0002552,2]
[393633704,1762869042007,-500.0,0.0002552,2]
[393633705,1762869042017,-500.0,0.0002552,2]
[393633706,1762869042027,-500.0,0.0002552,2]
[393633707,1762869042036,-479.69647102,0.0002552,2]
[393633708,1762869042045,-218.82459366,0.00025522,2]
[393633709,1762869042054,-500.0,0.00025522,2]
[393633710,1762869042063,-500.0,0.00025522,2]
[393633711,1762869042072,-327.0512117,0.00025522,2]
[393633712,1762869042082,-200.0,0.00025522,2]
[393633713,1762869042094,-500.0,0.00025522,2]
[393633714,1762869042104,-500.0,0.00025522,2]
[393633715,1762869042114,-342.5739675,0.00025522,2]
[393633716,1762869042124,-500.0,0.00025522,2]
[393633717,1762869042134,-500.0,0.00025522,2]
[393633718,1762869042143,-500.0,0.00025522,2]
[393633719,1762869042152,-500.0,0.00025666,2]
[393633720,1762869042161,-500.60550678,0.00025667,2]
[393633721,1762869042171,-501.42722306,0.00025667,2]
[393633722,1762869042180,-155.32827533,0.00025667,2]
[393633723,1762869042190,-500.0,0.00025667,2]
[393633724,1762869042199,-363.25928453,0.00025667,2]
[393633725,1762869042208,-38994.3672827,0.00025822,2]
[393633726,1762869042218,-1000.0,0.00026068,2]
[393633727,1762869042227,-362.45651944,0.00026068,2]
[393633728,1762869042236,-1000.0,0.00026068,2]
[393633729,1762869042246,-1000.0,0.00026068,2]
[393633730,1762869042255,-1002.03998791,0.00026068,2]
[393633731,1762869042264,-1000.0,0.00026068,2]
[393633732,1762869042273,-502.1336636,0.00026068,2]
[393633733,1762869042283,-1002.15227908,0.00026068,2]
[393633734,1762869042293,-1000.0,0.00026068,2]
[393633735,1762869042302,-1000.0,0.0002607,2]
[393633736,1762869042312,-1000.0,0.0002607,2]
[393633737,1762869042321,-656.38096514,0.0002607,2]
[393633738,1762869042331,-503.0410571,0.0002607,2]
[393633739,1762869042343,-1000.0,0.0002607,2]
[393633740,1762869042353,-1000.97016324,0.0002607,2]
[393633741,1762869042363,-1000.0,0.0002607,2]
[393633742,1762869042372,-500.0,0.00026075,2]
[393633743,1762869042382,-500.0,0.00026075,2]
[393633744,1762869042391,-500.0,0.00026075,2]
[393633745,1762869042401,-400.0,0.00026207,2]
[393633746,1762869042411,-1000.0,0.00026215,2]
[393633747,1762869042420,-817.7487637,0.0002646,2]
[393633748,1762869042430,-1210.06,0.0002651,2]
[393633750,1762869042439,-14957.3609992,0.0002652,3]
[393633751,1762869042449,-500.21512962,0.0002653,2]
[393633752,1762869042458,-500.0,0.0002653,2]
[393633753,1762869042467,-1500.0,0.00026616,2]
[393633754,1762869042476,-1064.94610672,0.00026616,2]
[393633755,1762869042486,-1503.66064638,0.00026616,2]
[393633756,1762869042495,-1500.0,0.00026616,2]
[393633758,1762869042504,-643.83457093,0.00026616,2]
[393633759,1762869042514,-1500.0,0.00026618,2]
[393633760,1762869042523,-888.87940477,0.00026618,2]
[393633761,1762869042532,-1378.71672338,0.00026618,2]
[393633762,1762869042542,-1005.14005012,0.00026618,2]
[393633763,1762869042551,-501.80253171,0.00026623,2]
[393633764,1762869042560,-1000.0,0.00026623,2]
[393633765,1762869042569,-1000.0,0.00026623,2]
[393633766,1762869042579,-314.1,0.00026676,2]
[393633767,1762869042588,-506.67966639,0.00026763,2]
[393633768,1762869042597,-526.70137073,0.00026775,2]
[393633769,1762869042606,-163.78594161,0.00026775,2]
[393633770,1762869042615,-503.18215431,0.00026775,2]
[393633771,1762869042625,-14957.3609992,0.00026785,3]
[393633772,1762869042634,-600.0,0.00026892,2]
[393633773,1762869042643,-515.44652778,0.00027164,2]
[393633774,1762869042653,-2000.0,0.00027164,2]
[393633776,1762869042671,-502.48155544,0.00027166,2]
[393633778,1762869042680,-869.59687336,0.00027171,2]
[393633779,1762869042689,-14957.3609992,0.00027307,3]
[393633781,1762869042699,-5217.0,0.00027316,2]
[393633783,1762869042709,-300.0,0.00027397,2]
[393633786,1762869042722,-38994.3672827,0.00027571,2]
[393633787,1762869042731,-905.38402433,0.00027577,5]
[393633788,1762869042741,-800.0,0.00027693,2]
[393633789,1762869042754,-1210.06,0.00027861,2]
[393633790,1762869042766,-817.7487637,0.00028129,2]
[393633791,1762869042775,-14957.3609992,0.00028412,3]
[393633792,1762869042785,-38994.3672827,0.0002932,2]
[393633793,1762869042794,-817.7487637,0.00029798,15]
[393633794,1762869042807,-750.5,0.0003,15]
[393633795,1762869042817,-29914.7219983,0.00030039,3]
[393633796,1762869042827,-13824.9545524,0.00030039,3]
[393633797,1762869042837,-150.0,0.00030673,5]
[393633798,1762869042851,-162.30554255,0.00030673,5]
[393633799,1762869042864,-96000.0,0.00030685,30]
[393633800,1762869042879,-220.59,0.00030753,14]
[393633801,1762869042892,-38994.3672827,0.00031069,2]
[393633802,1762869042905,-153.06,0.00031076,2]
[393633803,1762869042917,-204.91063775,0.00031221,5]
[393633804,1762869042927,-817.7487637,0.00031467,15]
[393633805,1762869042938,-14957.3609992,0.00031666,3]
[393633806,1762869042951,-27649.9091047,0.00031666,3]
[393633807,1762869042962,-151.44337,0.000326,2]
[393633808,1762869042974,-4126.912,0.00032726,33]
[393633809,1762869042986,-38994.3672827,0.00032817,2]
[393633810,1762869042997,-162.0,0.00033,14]
[393633811,1762869043009,-817.7487637,0.00033135,15]
[393633812,1762869043020,-314.1,0.00033165,2]
[393633813,1762869043033,-14957.3609992,0.00033293,3]
[393633814,1762869043044,-13824.9545524,0.00033293,3]
[393633815,1762869043055,-1441.84,0.000333,30]
[393633816,1762869043065,-500.0,0.00033302,2]
[393633817,1762869043076,-274.03320045,0.00033616,2]
[393633818,1762869043087,-162.0,0.00034521,30]
[393633819,1762869043097,-3373.57,0.00034599,2]
[393633820,1762869043107,-13824.9545524,0.00034794,3]
[393633821,1762869043118,-817.7487637,0.00034804,15]
[393633822,1762869043130,-14957.3609992,0.00034891,3]
[393633823,1762869043141,-14957.3609992,0.0003492,3]
[393633824,1762869043152,-13824.9545524,0.0003492,3]
[393633825,1762869043164,-14957.3609992,0.00034961,3]
[393633826,1762869043176,-13824.9545524,0.00034961,3]
[393633827,1762869043187,-27686.77525123,0.00034971,2]
[393633828,1762869043199,-500.0,0.00034973,5]
[393633829,1762869043210,-500.0,0.00034973,5]
[393633830,1762869043222,-2994.91550426,0.00034973,5]
[393633831,1762869043233,-150.88,0.0003498,2]
[393633832,1762869043245,-104701.526994,0.0003499,3]
[393633833,1762869043258,-317973.954704,0.0003499,3]
[393633834,1762869043270,-150.88,0.0003499,2]
[393633835,1762869043281,-151.0,0.00034997,14]
[393633836,1762869043294,-500.0,0.00034999,2]
[393633837,1762869043305,-500.0,0.00034999,2]
[393633838,1762869043318,-500.0,0.00034999,2]
[393633839,1762869043330,-500.0,0.00034999,2]
[393633840,1762869043341,-164.72,0.00035,14]
[393633841,1762869043353,-223262.90416222,0.00035,2]
[393633842,1762869043377,-7247.39193097,0.00034566,2]
[393633843,1762869043392,-2220.13654854,0.00034566,2]
[393633844,1762869043455,-345.19536789,0.00034566,2]
[393633845,1762869043470,-1183.61002282,0.00034566,2]
[393633846,1762869043491,-576.48,0.00034566,2]
[393633847,1762869043506,-1473.13603843,0.00034566,2]
[393633848,1762869043519,-300.0,0.00034566,2]
[393633849,1762869044388,-432.0,0.00034566,2]
[393633854,1762869046084,-181.904682,0.00019615,2]
[393633855,1762869046095,-329.82538192,0.00034566,2]
[393633857,1762869046313,-379.38838783,0.00034566,2]
[393633860,1762869060921,200.0,0.00039913,30]
[393633866,1762869362307,200.0,0.00039913,30]
[393633888,1762869499628,101000.0,0.00039913,120]
[393633890,1762869660695,200.0,0.00039912,30]
[393633891,1762869683348,-150.0,0.00034012,120]
[393633892,1762869683380,-1304.90558406,0.00034999,30]
[393633893,1762869683409,-157.38,0.0003502,120]
[393633894,1762869683439,-1297.66,0.000351,30]
[393633895,1762869683467,-500.0,0.00035847,30]
[393633896,1762869683499,-1096.46520902,0.00035933,30]
[393633897,1762869683529,-1101.97494401,0.00035933,30]
[393633898,1762869683556,-1099.63762039,0.00035933,30]
[393633899,1762869683584,-1000.0,0.00035933,30]
[393633900,1762869683611,-1245.36409428,0.00035933,30]
[393633901,1762869683638,-1000.0,0.00035933,30]
[393633902,1762869683668,-1000.0,0.00035933,30]
[393633903,1762869683697,-1000.0,0.00035933,30]
[393633904,1762869683724,-1000.0,0.00035933,30]
[393633905,1762869683752,-1000.0,0.00035933,30]
[393633906,1762869683782,-500.0,0.00036966,30]
[393633907,1762869683809,-1297.66,0.000372,30]
[393633908,1762869683837,-186.29272794,0.000372,120]
[393633909,1762869683865,-102433.25423343,0.000378,30]
[393633910,1762869683896,-26214.02198741,0.000378,30]
[393633911,1762869683928,-788.0,0.00038166,120]
[393633912,1762869683958,-1037.02,0.00038356,120]
[393633913,1762869683985,-1037.02,0.00038356,120]
[393633914,1762869684260,-1037.02,0.00038356,120]
[393633915,1762869684290,-1037.02,0.00038356,120]
[393633916,1762869684321,-1037.02,0.00038356,120]
[393633917,1762869684351,-1037.02,0.00038356,120]
[393633918,1762869684385,-1037.02,0.00038356,120]
[393633919,1762869684413,-1037.02,0.00038356,120]
[393633920,1762869684440,-1037.02,0.00038356,120]
[393633921,1762869684468,-1037.02,0.00038356,120]
[393633922,1762869684499,-1037.02,0.00038356,120]
[393633923,1762869684528,-1037.02,0.00038356,120]
[393633924,1762869684554,-1037.02,0.00038356,120]
[393633925,1762869684580,-1037.02,0.00038356,120]
[393633926,1762869684607,-1037.02,0.00038356,120]
[393633927,1762869684634,-1037.02,0.00038356,120]
[393633928,1762869684663,-1037.02,0.00038356,120]
[393633929,1762869684692,-1037.02,0.00038356,120]
[393633930,1762869684719,-1037.02,0.00038356,120]
[393633931,1762869684747,-1037.02,0.00038356,120]
[393633932,1762869684773,-1037.02,0.00038356,120]
[393633933,1762869684800,-1037.02,0.00038356,120]
[393633934,1762869684826,-1037.02,0.00038356,120]
[393633935,1762869684851,-1037.114032,0.00038356,120]
[393633936,1762869684882,-500.0,0.00038463,30]
[393633937,1762869684915,-788.0,0.00038501,120]
[393633938,1762869684946,-179.55,0.0003863,30]
[393633939,1762869684977,-1297.66,0.000387,30]
[393633940,1762869685005,-2169.73,0.000389,30]
[393633941,1762869685034,-1000.0,0.00038962,120]
[393633942,1762869685061,-505.87243499,0.00039203,120]
[393633943,1762869685089,-262.72460208,0.00039493,95]
[393633944,1762869685118,-179.84,0.000397,60]
[393633945,1762869685146,-220.5134589,0.00039712,30]
[393633946,1762869685176,-3098.0,0.00039817,120]
[393633947,1762869685204,-148513.3376227,0.0003988,120]
[393633948,1762869685230,-2040.0913,0.00039893,120]
[393633949,1762869685257,-151.0,0.00039911,120]
[393633950,1762869685282,-151.0,0.00039911,120]
[393633951,1762869685308,-151.0,0.00039911,120]
[393633952,1762869685333,-151.0,0.00039911,120]
[393633953,1762869685359,-156.996904,0.00039911,120]
[393633954,1762869685383,-151.0,0.00039911,120]
[393633955,1762869685409,-151.0,0.00039911,120]
[393633956,1762869685444,-151.0,0.00039911,120]
[393633957,1762869685475,-151.0,0.00039911,120]
[393633958,1762869685506,-151.0,0.00039911,120]
[393633959,1762869685552,-151.0,0.00039912,120]
[393633960,1762869685580,-161.096469,0.00039912,120]
[393633961,1762869685608,-156.590827,0.00039912,120]
[393633962,1762869685637,-151.0,0.00039912,120]
[393633963,1762869685668,-151.0,0.00039912,120]
[393633964,1762869685697,-151.0,0.00039912,120]
[393633965,1762869685727,-151.0,0.00039912,120]
[393633966,1762869685757,-151.0,0.00039912,120]
[393633967,1762869685787,-151.0,0.00039912,120]
[393633968,1762869685817,-151.0,0.00039912,120]
[393633969,1762869685850,-151.0,0.00039912,120]
[393633970,1762869685881,-151.0,0.00039912,120]
[393633971,1762869685912,-151.0,0.00039912,120]
[393633972,1762869685943,-151.0,0.00039912,120]
[393633973,1762869685976,-600.237351,0.00039912,120]
[393633974,1762869686005,-278.841849,0.00039912,120]
[393633975,1762869686034,-600.237351,0.00039912,120]
[393633976,1762869686062,-600.237351,0.00039912,120]
[393633977,1762869686091,-600.237351,0.00039912,120]
[393633978,1762869686119,-600.237351,0.00039912,120]
[393633979,1762869686147,-600.237351,0.00039912,120]
[393633980,1762869686175,-600.237351,0.00039912,120]
[393633981,1762869686203,-600.237351,0.00039912,120]
[393633982,1762869686231,-600.237351,0.00039912,120]
[393633983,1762869686258,-600.237351,0.00039912,120]
[393633984,1762869686285,-600.237351,0.00039912,120]
[393633985,1762869686312,-600.237351,0.00039912,120]
[393633986,1762869686339,-600.237351,0.00039912,120]
[393633987,1762869686373,-600.237351,0.00039912,120]
[393633988,1762869686401,-151.0,0.00039912,120]
[393633989,1762869686435,-600.237351,0.00039912,120]
[393633990,1762869686464,-151.0,0.00039912,120]
[393633991,1762869686494,-600.237351,0.00039912,120]
[393633992,1762869686523,-151.0,0.00039912,120]
[393633993,1762869686552,-600.237351,0.00039912,120]
[393633994,1762869686579,-151.0,0.00039912,120]
[393633995,1762869686606,-151.0,0.00039912,120]
[393633996,1762869686633,-600.237351,0.00039912,120]
[393633997,1762869686660,-151.0,0.00039912,120]
[393633998,1762869686686,-151.0,0.00039912,120]
[393633999,1762869686714,-600.237351,0.00039912,120]
[393634000,1762869686740,-151.0,0.00039912,120]
[393634001,1762869686765,-151.0,0.00039912,120]
[393634002,1762869686792,-600.237347,0.00039912,120]
[393634003,1762869686817,-151.0,0.00039912,120]
[393634004,1762869686842,-266.183687,0.00039912,120]
[393634005,1762869686868,-151.0,0.00039912,120]
[393634006,1762869686893,-151.0,0.00039912,120]
[393634007,1762869686918,-151.0,0.00039912,120]
[393634008,1762869686944,-3112.035639,0.00039912,120]
[393634009,1762869686973,-151.0,0.00039912,120]
[393634010,1762869687000,-3112.035639,0.00039912,120]
[393634011,1762869687026,-151.0,0.00039912,120]
[393634012,1762869687050,-151.0,0.00039912,120]
[393634013,1762869687077,-3112.035639,0.00039912,120]
[393634014,1762869687102,-151.0,0.00039912,120]
[393634015,1762869687130,-3112.035639,0.00039912,120]
[393634016,1762869687157,-424.083372,0.00039912,120]
[393634017,1762869687332,-151.0,0.00039912,120]
[393634018,1762869687360,-152.895614,0.00039912,120]
[393634019,1762869687388,-3112.035639,0.00039912,120]
[393634020,1762869687416,-3112.035639,0.00039912,120]
[393634021,1762869687442,-151.0,0.00039912,120]
[393634022,1762869687468,-151.0,0.00039912,120]
[393634023,1762869687495,-180.484716,0.00039912,120]
[393634024,1762869687522,-424.083372,0.00039912,120]
[393634025,1762869687549,-3112.035639,0.00039912,120]
[393634026,1762869687575,-152.152661,0.00039912,120]
[393634027,1762869687601,-151.0,0.00039912,120]
[393634028,1762869687627,-180.484716,0.00039912,120]
[393634029,1762869687654,-424.083372,0.00039912,120]
[393634030,1762869687684,-3112.035639,0.00039912,120]
[393634031,1762869687709,-151.0,0.00039912,120]
[393634032,1762869687736,-180.484716,0.00039912,120]
[393634033,1762869687764,-424.083372,0.00039912,120]
[393634034,1762869687790,-3112.035639,0.00039912,120]
[393634035,1762869687816,-172.677631,0.00039912,120]
[393634036,1762869687843,-180.484716,0.00039912,120]
[393634037,1762869687870,-424.083372,0.00039912,120]
[393634038,1762869687898,-3112.035639,0.00039912,120]
[393634039,1762869687925,-180.484716,0.00039912,120]
[393634040,1762869687955,-424.083372,0.00039912,120]
[393634041,1762869687983,-3112.035639,0.00039912,120]
[393634042,1762869688010,-151.0,0.00039912,120]
[393634043,1762869688036,-180.484716,0.00039912,120]
[393634044,1762869688064,-3112.035639,0.00039912,120]
[393634045,1762869688089,-424.083372,0.00039912,120]
[393634046,1762869688115,-151.0,0.00039912,120]
[393634047,1762869688141,-180.484716,0.00039912,120]
[393634048,1762869688166,-424.083372,0.00039912,120]
[393634049,1762869688192,-3112.035639,0.00039912,120]
[393634050,1762869688218,-151.0,0.00039912,120]
[393634051,1762869688243,-180.484716,0.00039912,120]
[393634052,1762869688270,-3112.035639,0.00039912,120]
[393634053,1762869688296,-424.083372,0.00039912,120]
[393634054,1762869688321,-180.484716,0.00039912,120]
[393634055,1762869688348,-151.0,0.00039912,120]
[393634056,1762869688374,-3112.035639,0.00039912,120]
[393634057,1762869688399,-424.083372,0.00039912,120]
[393634058,1762869688426,-180.484716,0.00039912,120]
[393634059,1762869688452,-151.0,0.00039912,120]
[393634060,1762869688479,-3112.035639,0.00039912,120]
[393634061,1762869688506,-424.083372,0.00039912,120]
[393634062,1762869688532,-151.0,0.00039912,120]
[393634063,1762869688558,-180.484716,0.00039912,120]
[393634064,1762869688584,-3112.035639,0.00039912,120]
[393634065,1762869688611,-424.083372,0.00039912,120]
[393634066,1762869688636,-180.484716,0.00039912,120]
[393634067,1762869688664,-151.0,0.00039912,120]
[393634068,1762869688692,-3112.035639,0.00039912,120]
[393634069,1762869688718,-424.083372,0.00039912,120]
[393634070,1762869688744,-180.484716,0.00039912,120]
[393634071,1762869688770,-151.0,0.00039912,120]
[393634072,1762869688797,-3112.035639,0.00039912,120]
[393634073,1762869688823,-151.0,0.00039912,120]
[393634074,1762869688848,-424.083372,0.00039912,120]
[393634075,1762869688874,-180.484716,0.00039912,120]
[393634076,1762869688901,-3112.035645,0.00039912,120]
[393634077,1762869688929,-180.484716,0.00039912,120]
[393634078,1762869688957,-424.083372,0.00039912,120]
[393634079,1762869688983,-151.0,0.00039912,120]
[393634080,1762869689009,-180.484716,0.00039912,120]
[393634081,1762869689036,-424.083372,0.00039912,120]
[393634082,1762869689063,-151.0,0.00039912,120]
[393634083,1762869689088,-180.484716,0.00039912,120]
[393634084,1762869689117,-424.083372,0.00039912,120]
[393634085,1762869689143,-151.0,0.00039912,120]
[393634086,1762869689169,-180.484716,0.00039912,120]
[393634087,1762869689195,-424.083372,0.00039912,120]
[393634088,1762869689222,-151.0,0.00039912,120]